Cogmind - Beta 16 @@@ ROGUE MODE // 2025.10.23 @ 20:30:02 Player: MisterClanker Result: Destroyed by D-53 Grenadier with Mini Grenade Launcher Performance ------------- Evolutions (0) 0 Regions Visited (2) 400 Robots Destroyed (1) 5 Value Destroyed (47) 47 Prototype IDs (0) 0 Alien Tech Used (0) 0 Bonus (31) 31 TOTAL SCORE: 483 Bonus ------- Follower Combat Kills 60 Friendly Fire -29 Cogmind --------- Core Integrity 0/250 Matter 253/300 Energy 98/100 System Corruption 0% Temperature Cool (0) Movement Rolling (90) Location -10/Mines Parts ------- > --- POWER (1) -------- (None) > --- PROPULSION (2) --- Wheel Compact Wheel > --- UTILITY (2) ------ Heat Sink Small Storage Unit > --- WEAPON (2) ------- (None) > --- INVENTORY (8) ---- Medium Matter Pod (0) Medium Matter Pod (0) Medium Laser Peak State ------------ > --- POWER ------------ Ion Engine > --- PROPULSION ------- Aluminum Leg Aluminum Leg > --- UTILITY ---------- Heat Sink Small Storage Unit > --- WEAPON ----------- Assault Rifle Assault Rifle > --- INVENTORY -------- Light Ion Engine Light Nuclear Core Aluminum Leg Wheel Compact Wheel Medium Matter Pod Medium Matter Pod Medium Laser [Rating: 8] Favorites ----------- Power Ion Engine Engine Ion Engine Power Core Light Nuclear Core Propulsion Aluminum Leg Leg Aluminum Leg Wheel Wheel Utility Small Storage Unit Device Heat Sink Storage Small Storage Unit Weapon Assault Rifle Ballistic Gun Assault Rifle Build | -11 -10 -10 ------- Run | Yrd Mat Min Slots Evolved . | . . . Power . | . . . Propulsion . | . . . Utility . | . . . Weapon . | . . . Parts Attached 12 | 5 1 6 Power 3 | 1 . 2 Engine 2 | 1 . 1 Core 1 | . . 1 Reactor . | . . . Propulsion 5 | 1 . 4 Treads . | . . . Leg 3 | 1 . 2 Wheel 2 | . . 2 Hover . | . . . Flight . | . . . Utility 2 | 1 1 . Device 1 | . 1 . Storage 1 | 1 . . Processor . | . . . Hackware . | . . . Protection . | . . . Artifact . | . . . Weapon 2 | 2 . . Energy Gun . | . . . Energy Cannon . | . . . Ballistic Gun 2 | 2 . . Ballistic Cannon . | . . . Launcher . | . . . Special Weapon . | . . . Impact Weapon . | . . . Slashing Weapon . | . . . Piercing Weapon . | . . . Special Melee Weapon . | . . . Unidentified Prototypes . | . . . Parts Lost 8 | . . 8 Power 3 | . . 3 Propulsion 3 | . . 3 Utility . | . . . Weapon 2 | . . 2 Highest Loss Streak 8 | . . 8 To Critical Strikes . | . . . Average Backups 6 | 3 5 7 Power 1 | . 1 1 Propulsion 2 | 2 3 2 Utility 1 | . . 2 Weapon . | . 1 1 Tool/Special . | . . . Unused Backups 4 | . . 4 Power . | . . . Propulsion . | . . . Utility 3 | . . 3 Weapon 1 | . . 1 Tool/Special . | . . . Average Slot Usage (%) 87 | . 81 92 Engine 14 | . 14 14 Leg 18 | . 14 21 Device 12 | . 10 14 Storage 14 | . 14 14 Ballistic Gun 27 | . 28 27 Peak Build Rating 8 | 5 6 8 Average Rating 6 | 3 5 7 On Entrance 3 | . 5 6 Avg Prop Armor Cover (%) . | . . . Naked Turns . | . . . Heaviest Build 15 | 14 15 15 Greatest Support 26 | 10 10 26 Greatest Overweight (x) 3 | 3 1 1 Average Overweight (x) . | . 1 . Largest Inventory Capacity 8 | 8 8 8 Average Capacity 7 | 7 8 8 Most Carried 8 | 5 8 8 Average Carried 6 | 4 5 7 Final Capacity 8 | 8 8 8 Final Carried 8 | 5 8 3 Class Distribution -------------------- 100% | Mutant Dominant Class ---------------- Mutant | -10/Materials Mutant | -10/Mines Resources | -11 -10 -10 ----------- Run | Yrd Mat Min Matter Collected 305 | 222 . 83 Remotely . | . . . Salvage Created 47 | . . 47 Parts 1 | . . 1 Haulers Intercepted . | . . . Recyclers Shooed . | . . . Parts Field Recycled . | . . . Retrieved Matter . | . . . Parts Self-Destructed . | . . . Prevented . | . . . Parts Restored . | . . . Kills | -11 -10 -10 ------- Run | Yrd Mat Min Combat Hostiles Destroyed 1 | . . 1 Guns 1 | . . 1 Classes Destroyed 1 | . . 1 Grunt 1 | . . 1 Best Kill Streak 1 | . . 1 Combat Bots Only 1 | . . 1 Max Kills in Single Turn 1 | . . 1 Gunslinging . | . . . Exploded . | . . . Melee . | . . . Uniques/NPCs Destroyed . | . . . Combat | -11 -10 -10 -------- Run | Yrd Mat Min Hostile Shots Fired 36 | . 11 25 Missed 4 | . 3 1 Hits 32 | . 8 24 Projectile 32 | . 8 24 AOE 18 | . . 18 Critical Strikes 1 | . 1 . Damage Taken 911 | . 101 810 Core 275 | . 35 240 Absorbed by Shields . | . . . Core Remaining (%) 100 | 100 . . Volleys Fired 15 | . 7 8 Largest 2 | . 2 2 Hottest 40 | . 40 40 Shots Fired 24 | . 8 16 Gun 24 | . 8 16 Cannon . | . . . Launcher . | . . . Special . | . . . Kinetic 24 | . 8 16 Thermal . | . . . Explosive . | . . . Electromagnetic . | . . . Robot Hit Streak 3 | . . 3 Robot Miss Streak 10 | . 8 10 Penetration Max . | . . . Secondary Targets . | . . . Shots Hit Robots 9 | . . 9 Core Hits 4 | . . 4 Critical Kills . | . . . Critical Parts Destroyed . | . . . Critical Strikes . | . . . Melee Attacks . | . . . Impact . | . . . Slashing . | . . . Piercing . | . . . Sneak Attacks . | . . . Combat Hostiles . | . . . Follow-up Attacks . | . . . Damage Inflicted 141 | . . 141 Guns 141 | . . 141 Cannons . | . . . Explosions . | . . . Melee . | . . . Ramming . | . . . Kinetic 141 | . . 141 Thermal . | . . . Explosive . | . . . Electromagnetic . | . . . Impact . | . . . Slashing . | . . . Piercing . | . . . Highest Corruption . | . . . Average Corruption . | . . . Corruption Purged . | . . . Corruption Blocked . | . . . Overload Shots . | . . . Overflow Damage . | . . . Projectiles . | . . . Explosions . | . . . Melee . | . . . Knockbacks . | . . . Impact . | . . . Kinetic . | . . . Secondary . | . . . Self-Inflicted Damage . | . . . Shots . | . . . Rammed . | . . . Targets Rammed . | . . . Kicked . | . . . Crushed . | . . . Highest Temperature . | . . . Average Temperature . | . . . Received Heat Transfer 138 | . 75 63 Siege Activations . | . . . Martial Activations . | . . . Shielding Activations . | . . . Robots Disrupted . | . . . Combat Hostiles . | . . . Robots Corrupted . | . . . Combat Hostiles . | . . . Parts Fried . | . . . Impact Corruptions . | . . . Robots Melted . | . . . Combat Hostiles . | . . . Parts Melted . | . . . Heat Transferred . | . . . Parts Sabotaged . | . . . Parts Stolen . | . . . Parts Stripped . | . . . Power Chain Reactions . | . . . Alert | -11 -10 -10 ------- Run | Yrd Mat Min Maximum Alert Level . | . . . Low Security (%) 100 | 100 100 100 Level 1 . | . . . Level 2 . | . . . Level 3 . | . . . Level 4 . | . . . Level 5 . | . . . High Security . | . . . Max Security . | . . . Peak Influence 49 | . 8 49 Initial . | . . . Average 7 | . . 14 Influence Increases 113 | . 8 105 Destroy 0b10 Robot/C 60 | . . 60 Destroy Leader 20 | . . 20 Allied During Kill 10 | . . 10 Successful Hack 8 | . 8 . Lose Combat Pursuer 15 | . . 15 Influence Decreases 113 | . 8 105 Time Decay 74 | . 8 66 Lost Part 39 | . . 39 Squads Dispatched . | . . . Investigation . | . . . Extermination . | . . . Reinforcement . | . . . Assault . | . . . Garrison . | . . . Intercept . | . . . Searches Triggered . | . . . Construction Impeded . | . . . Haulers Reinforced . | . . . Active Scanning Responses . | . . . Cargo Convoy Interrupts . | . . . Stealth | -11 -10 -10 --------- Run | Yrd Mat Min Distress Signals . | . . . Communications Jammed . | . . . Distress Signals . | . . . Times Spotted 11 | . 5 6 Peak Tracking Total 3 | . 3 2 Tactical Retreats 1 | . . 1 Traps | -11 -10 -10 ------- Run | Yrd Mat Min Traps Triggered . | . . . Indirectly . | . . . Trap Hack Attempts . | . . . Triggered . | . . . Disarmed . | . . . Reprogrammed . | . . . Reused . | . . . Traps Extracted . | . . . Installed . | . . . Triggered . | . . . Machines | -11 -10 -10 ---------- Run | Yrd Mat Min Machines Disabled . | . . . Max in Single Turn . | . . . Machines Repaired . | . . . Machines Dismantled . | . . . Machines Sabotaged . | . . . Overloaded Fab Kills . | . . . Hacking | -11 -10 -10 --------- Run | Yrd Mat Min Machines Accessed 1 | . 1 . Terminals 1 | . 1 . Fabricators . | . . . Repair Stations . | . . . Recycling Units . | . . . Scanalyzers . | . . . Garrison Access . | . . . Total Hacks 2 | . 2 . Successful 1 | . 1 . Failed 1 | . 1 . Catastrophic . | . . . Database Lockouts . | . . . Manual 2 | . 2 . Terminals 2 | . 2 . Fabricators . | . . . Repair Stations . | . . . Recycling Units . | . . . Scanalyzers . | . . . Garrison Access . | . . . Terminal Hacks 1 | . 1 . Branch Access Points 1 | . 1 . Fabricator Hacks . | . . . Repair Station Hacks . | . . . Recycling Unit Hacks . | . . . Scanalyzer . | . . . Garrison Access Hacks . | . . . Unauthorized Hacks . | . . . Terminals . | . . . Fabricators . | . . . Repair Stations . | . . . Recycling Units . | . . . Scanalyzers . | . . . Garrison Access . | . . . Data Cores Recovered . | . . . Used . | . . . Hacking Detections 1 | . 1 . Full Trace Events . | . . . Feedback Events . | . . . Feedback Blocked . | . . . Robot Schematics Acquired . | . . . Robots Built . | . . . Authchips . | . . . Time . | . . . Total Robot Build Rating . | . . . Part Schematics Acquired . | . . . Parts Built . | . . . Authchips . | . . . Time . | . . . Total Part Build Rating . | . . . Part Studies Acquired . | . . . Parts Repaired . | . . . Time . | . . . Parts Recycled . | . . . Recycled Matter . | . . . Retrieved Matter . | . . . Retrieved Components . | . . . Parts Scanalyzed . | . . . Part Schematics Acquired . | . . . Parts Damaged . | . . . Bothacking | -11 -10 -10 ------------ Run | Yrd Mat Min Used RIF Installer . | . . . Robots Hacked . | . . . Non-combat . | . . . Combat . | . . . Robot Hacks Applied . | . . . Relay Couplers Released . | . . . Fabnet Peak Effective % . | . . . Robots Rewired . | . . . Allies Hacked . | . . . Hacks Repelled . | . . . Allies | -11 -10 -10 -------- Run | Yrd Mat Min Total Allies 2 | . . 2 Largest Group 2 | . . 2 Highest-Rated Group 45 | . . 45 Highest-Rated Ally 31 | . . 31 Total Orders . | . . . Ally Attacks 20 | . . 20 Total Damage 314 | . . 314 Kills 5 | . . 5 Allies Corrupted . | . . . Allies Melted . | . . . Intel | -11 -10 -10 ------- Run | Yrd Mat Min Active Infowar (turns) . | . . . Robot Analysis Total . | . . . Derelict Logs Recovered . | . . . Drone Launches . | . . . Drone Recoveries . | . . . Exploration | -11 -10 -10 ------------- Run | Yrd Mat Min Turns Passed 448 | 61 163 224 Spaces Moved 245 | 32 76 137 Core 11 | 11 . . Treads . | . . . Legs 229 | 21 76 132 Wheels 5 | . . 5 Hover . | . . . Flight . | . . . Fastest Speed 50 | 50 190 90 Average Speed 157 | 155 190 140 Slowest Speed 200 | 200 190 190 Overloaded Moves . | . . . Propulsion Burnouts . | . . . Robots Hopped . | . . . Potential Cave-ins . | . . . Cave-ins Triggered . | . . . Exploration Rate (%) 21 | 3 22 40 Regions Visited 2 Branch Regions 1 Pre-discovered Areas . | . . . Known Exits Taken 1 | . 1 . Unknown Exits Taken 1 | 1 . . Scrap Searched . | . . . Spaces Dug . | . . . Terrain Destroyed . | . . . Melee . | . . . Projectile . | . . . AOE . | . . . Terrain Rammed . | . . . Walls Destroyed . | . . . Machines Disabled . | . . . Actions | -11 -10 -10 --------- Run | Yrd Mat Min Total 281 | 41 87 153 Wait 1 | . 1 . Move 243 | 31 75 137 Hop . | . . . Pick Up 9 | 5 3 1 Fast Attach 7 | 5 1 1 Attach 5 | . . 5 Detach . | . . . Swap . | . . . Drop 1 | . . 1 Fire 15 | . 7 8 Melee . | . . . Ram . | . . . Kick . | . . . Crush . | . . . Escape Stasis . | . . . Rewire . | . . . Trap . | . . . Miscellaneous . | . . . Route ------- -11/Scrapyard -10/Materials (discovered 2 exits: *Min x2) -10/Mines (discovered 1 exit: [*Mat]) History --------- Turn | Location | Event 15 | -11/Scrapyard | Discovered new exit (range 16) 62 | -11/Scrapyard | Entered Materials 156 | -10/Materials | Identified exit to Mines 225 | -10/Materials | Entered Mines 302 | -10/Mines | Build established: Mutant 322 | -10/Mines | Discovered new exit (range 9) 410 | -10/Mines | Assembled infested the area 415 | -10/Mines | Assisted by a Guerilla fighting off Assembled 438 | -10/Mines | Core integrity fell below 50% 444 | -10/Mines | Core integrity fell below 20% 449 | -10/Mines | Destroyed by D-53 Grenadier with Mini Grenade Launcher Last Messages --------------- come on!" G-47 Trooper suffers critical hit (Burn). G-47 Trooper destroyed. C-45 Heavy ARC bursts open, deploying its payload. D-53 Grenadier unfolds itself. Aluminum Leg destroyed. The unstable cave ceiling collapses. Assault Rifle destroyed. Aluminum Leg destroyed. The unstable cave ceiling collapses. Ion Engine destroyed. The unstable cave ceiling collapses. Lgt. Ion Engine destroyed. Aluminum Leg destroyed. D-53 Grenadier destroyed. The unstable cave ceiling collapses. Assault Rifle destroyed. Lgt. Nuclear Core destroyed. The unstable cave ceiling collapses. Map ----- +----------------------------------------------------+ | ?????????????????# *%= ##??????????????? | | ?????????????????# #### #?????????? | | ?????????????????# #?????????? | | ?????????????????# #########?????????? | | ?????????????????## ###?????????????????? | | ??????????????????# #???????????????????? | | ??????????????????# ##??????????????????? | | ??????????????????# ##?##??????????????? | | ?????????????????## ## #??????????????? | | ?????????????????# #??????????????? | | ????????????????## #??????????????? | | ?????????????#### # ##??????????????? | | ????????????## #####???????????????? | | ???????????## #??????????????????? | | ???????????# #??????????????????? | | ???????????## # #??????????????????? | | ???????????# ##??????????????????? | | ???????????# # #???????????????????? | | ??????????### ##??????????????????? | | ??????????# #??????????????????? | | ??????????# #??????????????????? | | ??????????# d #??????????????????? | | ??????????# # ##??????????????????? | | ??????????## #??????????????????? | | ???????????### #??????????????????? | | ?????????????## @ #####??????????????? | | ??????????????## ##?????????????? | | ??????????????# ######????????# | | ??????????????# ########## | | ???????#####??## ####k | | ????#### ##??## ##??## | | ???## ##??# #????# # ####### | | ???# #??# #????## ## #?????# | | ??## #### t##????####### #?????# | | ??# ##?????????# #?????# | | ??# ##### ##????????# #?????## | | ???# #???# ##???????# #??????## | | ???## #???## #???????# #???????? | | ????## ##????## #??????? #???????? | | ?????# ######?# #???????##????????? | | ?????# #### < #?????????????????? | | ?????# ### #?????????????????? | | ?????# #?????????????????? | | ?????# ##?????????????????? | | ?????# ##??????????????????? | | ?????## #???????????????????? | | ??????# #???????????????????? | | ??????## ##???????????????????? | | ???????########## ##????????????????????? | | ????????????????####?????????????????????? | +----------------------------------------------------+ Best States ------------- Heat Dissipation 35 Energy Generation 10 Energy Capacity 250 Matter Stores 287 Matter Capacity 300 Sight Range 16 Terrain Scan Density 10 Evasion (%) 55 Item Schematics ----------------- None Robot Schematics ------------------ None Fabricated ------------ Nothing Repaired ---------- Nothing Studied --------- None Alien Tech Used ----------------- None Achievements -------------- None Challenges ------------ None Game ------ Seed AntimatterSapperPrototype Manual? 0 Play Time 00:11:18 Cumulative 26.2 hours Start 2025.10.23 @ 20:19:57 End 2025.10.23 @ 20:30:02 Sessions 1 Manual Loads 0 Difficulty Rogue Special Mode None Game No. 32 Rogue 31 Adventurer 1 Explorer 0 Win Type - Total 0 Types 0/0/0/0/0/0/0/0/0/0 Lore% 11 Gallery% 18 Achievement% 12 Wizard Run 0 Options --------- Layout 2 ASCII 1 Keyboard 1 Movement Vi Keybinds 0 Fullscreen 1 Font 24/Smallcaps Map View 50x44 Zoom Use 0% Tactical HUD 0 Map Filters NONE Filters NONE Steam 1 RUN: 616c72b4-60e9-4aa9-94a9-ea5295acbbc0